fUST/lending_fUST_20250605
["ID","MTS","AMOUNT","RATE_DAILY","PERIOD"]
[364355302,1749078638798,-440.0,0.00017718,2]
[364355303,1749078638807,-410.0,0.00017718,2]
[364355304,1749078638816,-310.63,0.00017718,2]
[364355305,1749078638825,-410.0,0.00017718,2]
[364355306,1749078638835,-440.0,0.00017718,2]
[364355307,1749078638844,-440.0,0.00017718,2]
[364355308,1749078638853,-440.0,0.00017718,2]
[364355309,1749078638864,-410.0,0.00017718,2]
[364355310,1749078638873,-215.31054487,0.00017718,2]
[364355311,1749078638883,-410.0,0.00017718,2]
[364355312,1749078638892,-410.0,0.00017719,2]
[364355313,1749078638903,-410.0,0.00017719,2]
[364355314,1749078638913,-410.0,0.00017719,2]
[364355315,1749078638924,-362.69,0.00017719,2]
[364355316,1749078638934,-410.0,0.00017719,2]
[364355317,1749078638944,-410.0,0.00017719,2]
[364355318,1749078638953,-410.0,0.00017719,2]
[364355319,1749078638962,-181.86901151,0.00017719,2]
[364355320,1749078638972,-410.0,0.00017719,2]
[364355321,1749078638981,-410.0,0.00017719,2]
[364355322,1749078638991,-410.0,0.00017719,2]
[364355323,1749078639002,-440.0,0.00017719,2]
[364355324,1749078639011,-541.23,0.00017719,2]
[364355325,1749078639022,-410.0,0.00017719,2]
[364355326,1749078639033,-373.04,0.00017719,2]
[364355327,1749078639042,-410.0,0.00017719,2]
[364355328,1749078639051,-410.0,0.00017719,2]
[364355329,1749078639061,-410.0,0.00017719,2]
[364355330,1749078639071,-410.0,0.00017719,2]
[364355331,1749078639081,-410.0,0.00017719,2]
[364355332,1749078639090,-410.0,0.00017719,2]
[364355333,1749078639099,-495.92957885,0.00017719,2]
[364355334,1749078639108,-410.0,0.00017719,2]
[364355335,1749078639118,-391.84071174,0.00017719,2]
[364355336,1749078639127,-482.51,0.00017719,2]
[364355337,1749078639137,-410.0,0.00017719,2]
[364355338,1749078639147,-410.0,0.00017719,2]
[364355339,1749078639157,-410.0,0.00017719,2]
[364355340,1749078639167,-410.0,0.00017719,2]
[364355341,1749078639176,-410.0,0.00017719,2]
[364355342,1749078639187,-500.0,0.00017719,2]
[364355343,1749078639197,-410.0,0.00017719,2]
[364355344,1749078639208,-410.0,0.00017719,2]
[364355345,1749078639217,-410.0,0.00017719,2]
[364355346,1749078639226,-1119.61,0.00017719,2]
[364355347,1749078639235,-410.0,0.00017719,2]
[364355348,1749078639245,-440.0,0.00017719,2]
[364355349,1749078639254,-440.0,0.00017719,2]
[364355350,1749078639265,-440.0,0.00017719,2]
[364355351,1749078639276,-410.0,0.00017719,2]
[364355352,1749078639286,-410.0,0.00017719,2]
[364355353,1749078639295,-444.15,0.00017719,2]
[364355354,1749078639305,-410.0,0.00017719,2]
[364355355,1749078639314,-440.0,0.00017719,2]
[364355356,1749078639324,-440.0,0.00017719,2]
[364355357,1749078639334,-440.0,0.00017719,2]
[364355358,1749078639344,-410.0,0.00017719,2]
[364355359,1749078639353,-440.0,0.00017719,2]
[364355360,1749078639363,-440.0,0.00017719,2]
[364355361,1749078639372,-440.0,0.00017719,2]
[364355362,1749078639381,-440.0,0.00017719,2]
[364355363,1749078639390,-440.0,0.00017719,2]
[364355364,1749078639400,-440.0,0.00017719,2]
[364355365,1749078639409,-440.0,0.00017719,2]
[364355366,1749078639417,-440.0,0.00017719,2]
[364355367,1749078639427,-440.0,0.00017719,2]
[364355368,1749078639439,-440.0,0.00017719,2]
[364355369,1749078639453,-410.0,0.00017719,2]
[364355370,1749078639468,-410.0,0.00017719,2]
[364355371,1749078639483,-440.0,0.00017719,2]
[364355372,1749078639495,-440.0,0.00017719,2]
[364355373,1749078639509,-410.0,0.00017719,2]
[364355374,1749078639522,-440.0,0.00017719,2]
[364355375,1749078639536,-440.0,0.00017719,2]
[364355376,1749078639551,-505.41,0.00017719,2]
[364355377,1749078639564,-440.0,0.00017719,2]
[364355378,1749078639578,-440.0,0.00017719,2]
[364355379,1749078639592,-410.0,0.00017719,2]
[364355380,1749078639604,-440.0,0.00017719,2]
[364355381,1749078639618,-440.0,0.00017719,2]
[364355382,1749078639630,-440.0,0.00017719,2]
[364355383,1749078639643,-440.0,0.00017719,2]
[364355384,1749078639657,-410.0,0.00017719,2]
[364355385,1749078639670,-440.0,0.00017719,2]
[364355386,1749078639681,-440.0,0.00017719,2]
[364355387,1749078639691,-380.0,0.00017719,2]
[364355388,1749078639703,-440.0,0.00017719,2]
[364355389,1749078639716,-523.14,0.00017719,2]
[364355390,1749078639729,-390.0,0.00017719,2]
[364355391,1749078639742,-495.13258602,0.00017719,2]
[364355392,1749078639755,-440.0,0.00017719,2]
[364355393,1749078639768,-410.0,0.00017719,2]
[364355395,1749078639782,-440.0,0.00017719,2]
[364355396,1749078639796,-410.0,0.00017719,2]
[364355397,1749078639807,-440.0,0.0001772,2]
[364355398,1749078639817,-440.0,0.0001772,2]
[364355399,1749078639828,-410.0,0.0001772,2]
[364355400,1749078639841,-440.0,0.0001772,2]
[364355401,1749078639856,-452.48,0.0001772,2]
[364355402,1749078639871,-410.0,0.0001772,2]
[364355403,1749078639881,-440.0,0.0001772,2]
[364355404,1749078639893,-410.0,0.0001772,2]
[364355405,1749078639905,-410.0,0.0001772,2]
[364355406,1749078639919,-450.0,0.0001772,2]
[364355407,1749078639929,-410.0,0.0001772,2]
[364355408,1749078639940,-410.0,0.0001772,2]
[364355409,1749078639952,-440.0,0.0001772,2]
[364355410,1749078639963,-410.0,0.0001772,2]
[364355411,1749078639974,-440.0,0.0001772,2]
[364355412,1749078639986,-410.0,0.0001772,2]
[364355413,1749078639997,-410.0,0.0001772,2]
[364355414,1749078640011,-410.0,0.0001772,2]
[364355415,1749078640022,-440.0,0.0001772,2]
[364355416,1749078640035,-410.0,0.0001772,2]
[364355417,1749078640046,-440.0,0.0001772,2]
[364355418,1749078640059,-410.0,0.0001772,2]
[364355419,1749078640071,-410.0,0.0001772,2]
[364355420,1749078640083,-440.0,0.0001772,2]
[364355421,1749078640094,-440.0,0.0001772,2]
[364355422,1749078640106,-440.0,0.0001772,2]
[364355423,1749078640119,-410.0,0.0001772,2]
[364355424,1749078640131,-1753.0681411,0.00017868,2]
[364355425,1749078640143,-864.22,0.00017876,3]
[364355426,1749078640156,-432.11,0.00017876,3]
[364355427,1749078640167,-216.06,0.00017876,3]
[364355428,1749078640179,-648.2,0.00017876,3]
[364355429,1749078640191,-500.0,0.00017885,2]
[364355431,1749078640202,-500.0,0.00017885,2]
[364355434,1749078640213,-500.0,0.00017885,2]
[364355436,1749078640224,-500.0,0.00017885,2]
[364355438,1749078640237,-559.35933173,0.00017886,2]
[364355440,1749078640249,-430.0,0.00017886,2]
[364355442,1749078640264,-430.0,0.00017886,2]
[364355445,1749078640277,-440.0,0.00017886,2]
[364355447,1749078640288,-440.0,0.00017886,2]
[364355450,1749078640299,-440.0,0.00017886,2]
[364355452,1749078640311,-440.0,0.00017886,2]
[364355454,1749078640322,-440.0,0.00017886,2]
[364355457,1749078640333,-400.0,0.00017886,2]
[364355459,1749078640347,-401.60687437,0.00017886,2]
[364355461,1749078640360,-440.0,0.00017886,2]
[364355463,1749078640372,-440.0,0.00017886,2]
[364355465,1749078640383,-440.0,0.00017886,2]
[364355467,1749078640394,-430.0,0.00017886,2]
[364355470,1749078640406,-178.96875614,0.00017886,2]
[364355472,1749078640418,-430.0,0.00017886,2]
[364355474,1749078640430,-440.0,0.00017886,2]
[364355477,1749078640442,-430.0,0.00017886,2]
[364355479,1749078640454,-430.0,0.00017886,2]
[364355481,1749078640465,-440.0,0.00017886,2]
[364355483,1749078640475,-440.0,0.00017886,2]
[364355485,1749078640484,-266.38857307,0.00017886,2]
[364355487,1749078640493,-430.0,0.00017886,2]
[364355489,1749078640503,-440.0,0.00017886,2]
[364355491,1749078640512,-400.73707092,0.00017886,2]
[364355493,1749078640522,-440.0,0.00017886,2]
[364355495,1749078640531,-440.0,0.00017886,2]
[364355497,1749078640540,-440.0,0.00017886,2]
[364355499,1749078640550,-355.86025775,0.00017886,2]
[364355501,1749078640560,-296.78,0.00017886,2]
[364355503,1749078640569,-440.0,0.00017886,2]
[364355505,1749078640579,-440.0,0.00017886,2]
[364355507,1749078640589,-440.0,0.00017886,2]
[364355525,1749078640748,-440.0,0.00017886,2]
[364355528,1749078640760,-440.0,0.00017886,2]
[364355530,1749078640770,-440.0,0.00017886,2]
[364355532,1749078640779,-430.0,0.00017886,2]
[364355534,1749078640788,-490.0,0.00017886,2]
[364355535,1749078640798,-440.0,0.00017886,2]
[364355538,1749078640807,-430.0,0.00017886,2]
[364355539,1749078640816,-440.0,0.00017886,2]
[364355542,1749078640825,-440.0,0.00017886,2]
[364355543,1749078640836,-440.0,0.00017886,2]
[364355545,1749078640845,-502.23042331,0.00017886,2]
[364355547,1749078640854,-440.0,0.00017886,2]
[364355549,1749078640864,-430.0,0.00017886,2]
[364355551,1749078640873,-440.0,0.00017886,2]
[364355553,1749078640882,-440.0,0.00017886,2]
[364355555,1749078640891,-440.0,0.00017886,2]
[364355557,1749078640900,-440.0,0.00017886,2]
[364355559,1749078640910,-440.0,0.00017886,2]
[364355561,1749078640919,-430.0,0.00017886,2]
[364355563,1749078640928,-440.0,0.00017886,2]
[364355565,1749078640938,-440.0,0.00017886,2]
[364355567,1749078640947,-440.0,0.00017886,2]
[364355569,1749078640956,-525.09977558,0.00017886,2]
[364355571,1749078640966,-430.0,0.00017886,2]
[364355573,1749078640975,-470.0,0.00017886,2]
[364355575,1749078640984,-470.0,0.00017886,2]
[364355577,1749078640993,-470.0,0.00017886,2]
[364355579,1749078641003,-470.0,0.00017886,2]
[364355581,1749078641012,-435.26812203,0.00017886,2]
[364355583,1749078641021,-440.0,0.00017886,2]
[364355585,1749078641030,-430.0,0.00017886,2]
[364355587,1749078641039,-430.0,0.00017886,2]
[364355589,1749078641048,-440.0,0.00017886,2]
[364355591,1749078641058,-500.0,0.00017886,2]
[364355593,1749078641068,-440.0,0.00017886,2]
[364355595,1749078641077,-430.0,0.00017886,2]
[364355597,1749078641086,-500.0,0.00017886,2]
[364355599,1749078641096,-440.0,0.00017887,2]
[364355601,1749078641105,-440.0,0.00017887,2]
[364355603,1749078641115,-440.0,0.00017887,2]
[364355605,1749078641125,-440.0,0.00017887,2]
[364355607,1749078641134,-440.0,0.00017887,2]
[364355609,1749078641143,-440.0,0.00017887,2]
[364355611,1749078641153,-440.0,0.00017887,2]
[364355613,1749078641163,-430.0,0.00017888,2]
[364355615,1749078641174,-430.0,0.00017888,2]
[364355617,1749078641183,-430.0,0.00017888,2]
[364355619,1749078641193,-430.0,0.00017888,2]
[364355621,1749078641203,-1510.1922019,0.000179,2]
[364355623,1749078641213,-500.0,0.00017915,2]
[364355625,1749078641223,-544.48463596,0.00017946,2]
[364355627,1749078641234,-440.0,0.00017992,2]
[364355629,1749078641243,-440.0,0.00017992,2]
[364355631,1749078641252,-534.77,0.00017992,2]
[364355633,1749078641263,-1020.64,0.00017992,2]
[364355635,1749078641274,-1113.29,0.00017992,2]
[364355637,1749078641284,-440.0,0.00017992,2]
[364355640,1749078641294,-440.0,0.00017992,2]
[364355641,1749078641303,-440.0,0.00017992,2]
[364355643,1749078641313,-440.0,0.00017992,2]
[364355645,1749078641322,-580.53,0.00017992,2]
[364355647,1749078641331,-440.0,0.00017992,2]
[364355649,1749078641343,-440.0,0.00017992,2]
[364355652,1749078641352,-400.0,0.00017992,2]
[364355653,1749078641362,-440.0,0.00017992,2]
[364355656,1749078641371,-440.0,0.00017992,2]
[364355658,1749078641381,-440.0,0.00017992,2]
[364355659,1749078641390,-440.0,0.00017992,2]
[364355661,1749078641399,-440.0,0.00017992,2]
[364355663,1749078641408,-440.0,0.00017992,2]
[364355666,1749078641418,-440.0,0.00017992,2]
[364355667,1749078641427,-440.0,0.00017992,2]
[364355669,1749078641436,-440.0,0.00017992,2]
[364355672,1749078641446,-440.0,0.00017993,2]
[364355673,1749078641455,-335.76,0.00017993,2]
[364355675,1749078641464,-440.0,0.00017993,2]
[364355677,1749078641473,-440.0,0.00017993,2]
[364355680,1749078641483,-440.0,0.00017993,2]
[364355681,1749078641493,-440.0,0.00017993,2]
[364355684,1749078641503,-398.24067093,0.00017993,2]
[364355685,1749078641512,-440.0,0.00017993,2]
[364355688,1749078641522,-400.0,0.00017993,2]
[364355689,1749078641531,-440.0,0.00017993,2]
[364355690,1749078641540,-419.77186532,0.00017993,2]
[364355691,1749078641549,-1119.61,0.00017993,2]
[364355692,1749078641558,-440.0,0.00017993,2]
[364355693,1749078641567,-533.64,0.00017993,2]
[364355694,1749078641577,-440.0,0.00017993,2]
[364355695,1749078641586,-444.15,0.00017993,2]
[364355696,1749078641595,-400.0,0.00017993,2]
[364355697,1749078641605,-440.0,0.00017993,2]
[364355698,1749078641615,-400.0,0.00017993,2]
[364355699,1749078641624,-440.0,0.00017993,2]
[364355700,1749078641633,-500.0,0.00017993,2]
[364355701,1749078641642,-440.0,0.00017993,2]
[364355702,1749078641651,-440.0,0.00017993,2]
[364355703,1749078641660,-400.0,0.00017993,2]
[364355704,1749078641669,-440.0,0.00017993,2]
[364355705,1749078641678,-400.0,0.00017993,2]
[364355706,1749078641688,-576.56723153,0.00017993,2]
[364355707,1749078641698,-440.0,0.00017993,2]
[364355708,1749078641707,-400.0,0.00017993,2]
[364355709,1749078641717,-400.0,0.00017993,2]
[364355710,1749078641726,-400.0,0.00017993,2]
[364355711,1749078641734,-440.0,0.00017993,2]
[364355712,1749078641743,-400.0,0.00017993,2]
[364355713,1749078641752,-440.0,0.00017993,2]
[364355714,1749078641762,-363.27,0.00017993,2]
[364355716,1749078641771,-505.41,0.00017993,2]
[364355718,1749078641781,-440.0,0.00017993,2]
[364355720,1749078641791,-78.32472143,0.00017993,2]
[364355733,1749078641903,-321.67527857,0.00017993,2]
[364355735,1749078641913,-400.0,0.00017993,2]
[364355738,1749078641922,-440.0,0.00017993,2]
[364355740,1749078641931,-440.0,0.00017993,2]
[364355741,1749078641940,-440.0,0.00017993,2]
[364355744,1749078641950,-400.0,0.00017993,2]
[364355746,1749078641959,-330.0125495,0.00017993,2]
[364355748,1749078641969,-440.0,0.00017993,2]
[364355750,1749078641979,-523.14,0.00017993,2]
[364355752,1749078641989,-440.0,0.00017993,2]
[364355753,1749078641999,-440.0,0.00017993,2]
[364355756,1749078642008,-1510.19220189,0.00018141,2]
[364355758,1749078642019,-500.0,0.00018159,2]
[364355760,1749078642028,-500.0,0.00018159,2]
[364355762,1749078642037,-160.0,0.00018159,2]
[364355764,1749078642047,-392.78370433,0.0001816,2]
[364355766,1749078642056,-440.0,0.0001816,2]
[364355768,1749078642065,-269.56509012,0.0001816,2]
[364355771,1749078642083,-170.43490988,0.0001816,2]
[364355773,1749078642094,-440.0,0.0001816,2]
[364355775,1749078642104,-420.0,0.0001816,2]
[364355777,1749078642115,-440.0,0.0001816,2]
[364355779,1749078642124,-440.0,0.0001816,2]
[364355781,1749078642134,-440.0,0.0001816,2]
[364355783,1749078642144,-440.0,0.0001816,2]
[364355785,1749078642155,-440.0,0.0001816,2]
[364355787,1749078642164,-440.0,0.0001816,2]
[364355789,1749078642174,-440.0,0.0001816,2]
[364355791,1749078642183,-440.0,0.0001816,2]
[364355793,1749078642192,-440.0,0.0001816,2]
[364355795,1749078642203,-440.0,0.0001816,2]
[364355797,1749078642213,-206.95261598,0.0001816,2]
[364355799,1749078642222,-440.0,0.0001816,2]
[364355801,1749078642232,-561.85208153,0.0001816,2]
[364355803,1749078642240,-440.0,0.0001816,2]
[364355805,1749078642250,-420.0,0.0001816,2]
[364355807,1749078642259,-420.0,0.0001816,2]
[364355809,1749078642273,-420.0,0.0001816,2]
[364355811,1749078642283,-420.0,0.0001816,2]
[364355813,1749078642292,-420.0,0.0001816,2]
[364355815,1749078642302,-420.0,0.0001816,2]
[364355817,1749078642312,-514.28805565,0.0001816,2]
[364355819,1749078642321,-440.0,0.0001816,2]
[364355821,1749078642331,-426.71508633,0.0001816,2]
[364355823,1749078642340,-440.0,0.00018161,2]
[364355825,1749078642350,-420.0,0.00018161,2]
[364355827,1749078642359,-374.39285761,0.00018161,2]
[364355829,1749078642369,-440.0,0.00018161,2]
[364355831,1749078642379,-440.0,0.00018161,2]
[364355833,1749078642388,-440.0,0.00018161,2]
[364355835,1749078642397,-440.0,0.00018161,2]
[364355837,1749078642407,-440.0,0.00018266,2]
[364355839,1749078642416,-568.97,0.00018266,2]
[364355841,1749078642424,-534.77,0.00018266,2]
[364355842,1749078642434,-1020.64,0.00018266,2]
[364355844,1749078642443,-1113.29,0.00018266,2]
[364355847,1749078642453,-440.0,0.00018266,2]
[364355848,1749078642463,-440.0,0.00018266,2]
[364355850,1749078642472,-440.0,0.00018266,2]
[364355852,1749078642481,-440.0,0.00018266,2]
[364355854,1749078642490,-440.0,0.00018266,2]
[364355856,1749078642500,-440.0,0.00018266,2]
[364355859,1749078642511,-440.0,0.00018266,2]
[364355861,1749078642520,-171.06,0.00018266,2]
[364355863,1749078642531,-440.0,0.00018266,2]
[364355865,1749078642540,-440.0,0.00018266,2]
[364355866,1749078642550,-440.0,0.00018266,2]
[364355868,1749078642559,-440.0,0.00018266,2]
[364355871,1749078642570,-440.0,0.00018266,2]
[364355873,1749078642579,-440.0,0.00018266,2]
[364355874,1749078642589,-440.0,0.00018266,2]
[364355877,1749078642600,-440.0,0.00018267,2]
[364355878,1749078642609,-440.0,0.00018267,2]
[364355880,1749078642619,-440.0,0.00018267,2]
[364355882,1749078642627,-440.0,0.00018267,2]
[364355884,1749078642636,-440.0,0.00018267,2]
[364355886,1749078642646,-440.0,0.00018267,2]
[364355888,1749078642655,-282.11,0.00018267,2]
[364355890,1749078642664,-1119.61,0.00018267,2]
[364355892,1749078642673,-440.0,0.00018267,2]
[364355894,1749078642683,-440.0,0.00018267,2]
[364355896,1749078642692,-444.15,0.00018267,2]
[364355898,1749078642701,-440.0,0.00018267,2]
[364355901,1749078642711,-440.0,0.00018267,2]
[364355902,1749078642721,-290.29,0.00018267,2]
[364355904,1749078642733,-440.0,0.00018267,2]
[364355907,1749078642743,-440.0,0.00018267,2]
[364355908,1749078642753,-440.0,0.00018267,2]
[364355910,1749078642763,-440.0,0.00018267,2]
[364355912,1749078642772,-440.0,0.00018267,2]
[364355914,1749078642781,-505.41,0.00018267,2]
[364355916,1749078642790,-440.0,0.00018267,2]
[364355918,1749078642800,-440.0,0.00018267,2]
[364355920,1749078642809,-414.453377,0.00018267,2]
[364355922,1749078642818,-440.0,0.00018267,2]
[364355924,1749078642827,-440.0,0.00018267,2]
[364355926,1749078642836,-523.14,0.00018267,2]
[364355928,1749078642846,-440.0,0.00018267,2]
[364355930,1749078642855,-440.0,0.00018267,2]
[364355932,1749078642865,-1510.19220189,0.00018383,2]
[364355934,1749078642874,-500.0,0.00018432,2]
[364355936,1749078642884,-500.0,0.00018432,2]
[364355938,1749078642894,-1445.3,0.00018433,2]
[364355940,1749078642903,-400.0,0.00018433,2]
[364355942,1749078642913,-570.55,0.00018433,2]
[364355944,1749078642922,-440.0,0.00018433,2]
[364355946,1749078642932,-430.0,0.00018434,2]
[364355949,1749078642942,-440.0,0.00018434,2]
[364355952,1749078642951,-410.0,0.00018434,2]
[364355954,1749078642960,-480.51639886,0.00018434,2]
[364355957,1749078642969,-440.0,0.00018435,2]
[364355959,1749078642979,-440.0,0.00018435,2]
[364355961,1749078642988,-440.0,0.00018435,2]
[364355963,1749078642997,-440.0,0.00018435,2]
[364355965,1749078643007,-440.0,0.00018435,2]
[364355967,1749078643016,-440.0,0.0001854,2]
[364355969,1749078643026,-534.77,0.0001854,2]
[364355971,1749078643035,-1020.64,0.0001854,2]
[364355973,1749078643045,-1113.29,0.0001854,2]
[364355975,1749078643054,-440.0,0.0001854,2]
[364355977,1749078643064,-440.0,0.0001854,2]
[364355979,1749078643073,-440.0,0.0001854,2]
[364355981,1749078643083,-202.32,0.0001854,2]
[364355983,1749078643092,-248.01,0.0001854,2]
[364355985,1749078643102,-440.0,0.0001854,2]
[364355987,1749078643111,-440.0,0.0001854,2]
[364355989,1749078643120,-440.0,0.0001854,2]
[364355991,1749078643130,-440.0,0.0001854,2]
[364355993,1749078643139,-440.0,0.0001854,2]
[364355995,1749078643149,-440.0,0.0001854,2]
[364355997,1749078643158,-440.0,0.0001854,2]
[364355999,1749078643167,-440.0,0.0001854,2]
[364356001,1749078643177,-440.0,0.0001854,2]
[364356003,1749078643186,-440.0,0.00018541,2]
[364356005,1749078643195,-440.0,0.00018541,2]
[364356007,1749078643204,-440.0,0.00018541,2]
[364356009,1749078643214,-440.0,0.00018541,2]
[364356011,1749078643223,-440.0,0.00018541,2]
[364356013,1749078643233,-433.36,0.00018541,2]
[364356015,1749078643243,-1119.61,0.00018541,2]
[364356017,1749078643252,-270.8,0.00018541,2]
[364356019,1749078643261,-440.0,0.00018541,2]
[364356021,1749078643275,-444.15,0.00018541,2]
[364356023,1749078643284,-440.0,0.00018541,2]
[364356025,1749078643294,-440.0,0.00018541,2]
[364356027,1749078643303,-440.0,0.00018541,2]
[364356029,1749078643313,-440.0,0.00018541,2]
[364356031,1749078643323,-440.0,0.00018541,2]
[364356033,1749078643332,-440.0,0.00018541,2]
[364356035,1749078643342,-440.0,0.00018541,2]
[364356037,1749078643351,-505.41,0.00018541,2]
[364356039,1749078643361,-440.0,0.00018541,2]
[364356041,1749078643371,-440.0,0.00018541,2]
[364356043,1749078643380,-360.0,0.00018541,2]
[364356057,1749078643504,-151.0,0.00018541,2]
[364356060,1749078643518,-440.0,0.00018541,2]
[364356062,1749078643528,-523.14,0.00018541,2]
[364356064,1749078643538,-440.0,0.00018541,2]
[364356066,1749078643548,-151.0,0.00018541,2]
[364356068,1749078643557,-226.185763,0.00018541,2]
[364356070,1749078643566,-440.0,0.00018541,2]
[364356072,1749078643575,-1510.19220189,0.00018624,2]
[364356074,1749078643586,-1445.3,0.00018707,2]
[364356076,1749078643595,-570.55,0.00018707,2]
[364356078,1749078643605,-440.0,0.00018707,2]
[364356080,1749078643615,-440.0,0.00018709,2]
[364356083,1749078643624,-440.0,0.00018709,2]
[364356085,1749078643634,-440.0,0.00018709,2]
[364356086,1749078643643,-440.0,0.00018709,2]
[364356088,1749078643652,-421.45901827,0.00018709,2]
[364356091,1749078643662,-151.0,0.0001871,2]
[364356092,1749078643671,-151.0,0.0001871,2]
[364356094,1749078643681,-151.0,0.0001871,2]
[364356096,1749078643691,-160.140701,0.0001871,2]
[364356099,1749078643700,-420.0,0.00018748,2]
[364356100,1749078643709,-240.0,0.00018749,2]
[364356103,1749078643719,-534.77,0.00018814,2]
[364356105,1749078643729,-1020.64,0.00018814,2]
[364356107,1749078643738,-1113.29,0.00018814,2]
[364356108,1749078643747,-440.0,0.00018814,2]
[364356111,1749078643760,-440.0,0.00018814,2]
[364356113,1749078643769,-440.0,0.00018814,2]
[364356115,1749078643779,-440.0,0.00018814,2]
[364356117,1749078643788,-440.0,0.00018814,2]
[364356119,1749078643798,-440.0,0.00018815,2]
[364356121,1749078643807,-1119.61,0.00018815,2]
[364356123,1749078643817,-444.15,0.00018815,2]
[364356125,1749078643826,-440.0,0.00018815,2]
[364356127,1749078643835,-440.0,0.00018815,2]
[364356129,1749078643844,-440.0,0.00018815,2]
[364356131,1749078643854,-505.41,0.00018815,2]
[364356133,1749078643863,-440.0,0.00018815,2]
[364356135,1749078643872,-440.0,0.00018815,2]
[364356137,1749078643882,-523.14,0.00018815,2]
[364356139,1749078643890,-232.9,0.00018815,2]
[364356141,1749078643900,-230.27803,0.00018825,2]
[364356143,1749078643909,-1510.19220189,0.00018866,2]
[364356145,1749078643918,-500.0,0.00018899,2]
[364356147,1749078643928,-500.0,0.00018899,2]
[364356149,1749078643937,-1445.3,0.00018981,2]
[364356151,1749078643946,-570.55,0.00018981,2]
[364356153,1749078643956,-410.0,0.00018981,2]
[364356155,1749078643966,-171.07087,0.00018981,2]
[364356157,1749078643976,-171.07087,0.00018981,2]
[364356159,1749078643986,-440.0,0.00018983,2]
[364356161,1749078643995,-440.0,0.00018983,2]
[364356163,1749078644004,-440.0,0.00018983,2]
[364356165,1749078644013,-440.0,0.00018983,2]
[364356167,1749078644023,-534.77,0.00019088,2]
[364356169,1749078644032,-1020.64,0.00019088,2]
[364356171,1749078644042,-1113.29,0.00019088,2]
[364356173,1749078644051,-440.0,0.00019088,2]
[364356175,1749078644062,-440.0,0.00019088,2]
[364356177,1749078644071,-440.0,0.00019088,2]
[364356179,1749078644081,-440.0,0.00019088,2]
[364356181,1749078644090,-440.0,0.00019088,2]
[364356183,1749078644099,-440.0,0.00019089,2]
[364356185,1749078644109,-1119.61,0.00019089,2]
[364356187,1749078644121,-444.15,0.00019089,2]
[364356189,1749078644130,-440.0,0.00019089,2]
[364356191,1749078644140,-440.0,0.00019089,2]
[364356193,1749078644149,-440.0,0.00019089,2]
[364356195,1749078644158,-505.41,0.00019089,2]
[364356197,1749078644168,-523.14,0.00019089,2]
[364356199,1749078644178,-1510.19220189,0.00019107,2]
[364356201,1749078644187,-1728.44,0.00019246,3]